bitfinex/quotes_ETHUSD_20251006
["timestamp","ask_amount","ask_price","bid_price","bid_amount"]
[1759750268720,0.5712,4592.0,4591.4,0.1088]
[1759750269284,0.4624,4592.0,4591.4,0.1088]
[1759750269518,0.60110674,4591.9,4591.4,0.1088]
[1759750269908,2.6401952,4591.8,4591.4,0.1088]
[1759750270242,0.4624,4591.8,4591.4,0.1088]
[1759750270385,2.17784262,4591.7,4591.4,0.1088]
[1759750270588,0.4624,4591.6,4591.4,0.1088]
[1759750270987,0.4624,4591.5,4591.4,0.1088]
[1759750271221,2.64033749,4591.5,4591.4,0.1088]
[1759750271630,2.17804966,4591.3,4590.9,0.11517131]
[1759750271828,2.64033749,4591.5,4591.0,0.1088]
[1759750272113,2.17803236,4591.3,4591.0,0.1088]
[1759750272416,0.60110674,4591.4,4591.0,0.1088]
[1759750272620,0.4624,4591.3,4591.0,0.1088]
[1759750272993,0.4624,4591.2,4591.0,0.1088]
[1759750273590,0.4624,4591.1,4591.0,0.1088]
[1759750273991,2.538,4591.6,4591.0,0.1088]
[1759750274193,2.536,4592.0,4591.5,0.1088]
[1759750274489,0.4624,4591.9,4591.8,0.1088]
[1759750274885,2.536,4592.0,4591.8,0.1088]
[1759750275331,0.4624,4591.9,4591.8,0.1088]
[1759750275667,0.4624,4591.9,4590.6,1.15779093]
[1759750275795,0.1088,4591.7,4591.0,0.1088]
[1759750276152,0.4624,4591.8,4591.0,0.001]
[1759750276153,2.17812724,4591.1,4591.0,0.001]
[1759750276307,4.72012724,4591.1,4591.0,0.001]
[1759750276491,5.18252724,4591.1,4591.0,0.001]
[1759750276917,5.29032724,4591.1,4591.0,0.001]
[1759750277412,2.17841193,4590.5,4590.4,0.1088]
[1759750277613,2.17841193,4590.5,4590.1,0.11173722]
[1759750277614,2.17847869,4590.4,4590.1,0.22053722]
[1759750277812,2.17847869,4590.4,4590.1,0.1088]
[1759750277813,0.4624,4590.4,4590.1,0.1088]
[1759750278039,0.4624,4590.3,4590.1,0.1088]
[1759750278540,0.4624,4590.2,4590.1,0.1088]
[1759750278713,0.4624,4590.2,4590.1,0.21585919]
[1759750278913,2.64095431,4590.2,4589.3,1.15779093]
[1759750279115,2.54,4590.1,4589.2,1.15779093]
[1759750279315,2.54,4590.0,4589.8,0.1088]
[1759750279742,2.54,4590.0,4589.3,2.4]
[1759750279929,0.60010674,4589.9,4589.6,0.1088]
[1759750280137,0.60010674,4589.9,4588.8,1.5883156]
[1759750280138,2.17888612,4589.6,4588.8,1.5883156]
[1759750280343,2.54,4589.5,4588.8,0.10906444]
[1759750280655,2.54,4589.5,4589.0,0.1088]
[1759750280958,2.54,4589.4,4589.1,0.1088]
[1759750281118,0.60010674,4589.9,4589.2,2.17902902]
[1759750281316,0.60010674,4589.9,4589.8,0.1088]
[1759750281515,0.60010674,4589.9,4589.8,2.28754417]
[1759750281938,0.60010674,4589.9,4589.8,0.1088]
[1759750282133,0.60010674,4589.9,4589.3,0.2632029]
[1759750282351,2.77882926,4589.9,4589.3,0.2632029]
[1759750282560,0.60010674,4589.9,4589.1,2.17907487]
[1759750282724,2.77881705,4589.9,4589.0,2.17911786]
[1759750282921,0.60010674,4589.9,4588.8,2.15007732]
[1759750283124,0.60010674,4589.9,4589.4,2.17893318]
[1759750283326,0.60010674,4589.9,4588.9,1.15779093]
[1759750283327,2.542,4589.8,4588.9,1.15779093]
[1759750283525,2.542,4589.8,4589.0,2.39408985]
[1759750283725,2.542,4589.8,4589.0,2.39412772]
[1759750283924,2.542,4589.8,4589.0,0.21500773]
[1759750284119,2.542,4589.8,4589.1,0.02179076]
[1759750284454,2.542,4589.8,4589.0,2.4]
[1759750284653,2.542,4589.8,4589.4,2.17889484]
[1759750285023,2.542,4589.8,4589.2,2.17902109]
[1759750285324,2.542,4589.8,4588.9,0.453]
[1759750285541,2.542,4589.8,4589.2,2.17899121]
[1759750285919,0.60010674,4589.7,4589.2,2.17899121]
[1759750286122,0.60010674,4589.7,4589.0,2.61500773]
[1759750286430,0.60010674,4589.7,4589.2,2.17898455]
[1759750286627,0.60010674,4589.7,4589.3,2.17897342]
[1759750286951,0.60010674,4589.7,4589.4,0.45789734]
[1759750287157,0.60010674,4589.7,4589.0,2.61500773]
[1759750287345,0.60010674,4589.7,4588.8,1.69707732]
[1759750287346,0.60010674,4589.7,4588.8,0.10906444]
[1759750287534,2.17917147,4588.9,4588.8,0.001]
[1759750287738,4.71917147,4588.9,4588.8,0.001]
[1759750287939,5.18157147,4588.9,4588.8,0.001]
[1759750289971,0.4624,4588.9,4588.8,0.001]
[1759750290150,5.18157147,4588.9,4588.8,0.001]
[1759750290698,5.18157147,4588.9,4587.8,0.001]
[1759750290699,2.17946682,4588.3,4587.8,0.001]
[1759750290846,2.54,4588.2,4587.8,0.001]
[1759750291847,0.4624,4588.1,4587.8,0.001]
[1759750292045,2.17964646,4587.9,4587.8,0.001]
[1759750292258,2.17884646,4587.9,4587.8,0.001]
[1759750292462,2.64124646,4587.9,4587.8,0.001]
[1759750293279,2.539,4587.9,4587.8,0.001]
[1759750293455,4.71864646,4587.9,4587.8,0.001]
[1759750293975,2.17974148,4587.7,4587.6,0.001]
[1759750294779,0.20690674,4587.8,4587.6,0.001]
[1759750295150,2.17974148,4587.7,4587.6,0.001]
[1759750295357,5.17704148,4587.7,4587.6,0.001]
[1759750296551,7.57704148,4587.7,4587.6,0.001]
[1759750298257,2.81338899,4587.6,4586.6,1e-08]
[1759750298462,2.17988403,4587.4,4586.6,1e-08]
[1759750298663,2.18002659,4587.1,4586.6,1e-08]
[1759750298862,2.18021671,4586.7,4586.6,1e-08]
[1759750299181,4.72121671,4586.7,4586.6,1e-08]
[1759750299378,7.58051671,4586.7,4586.6,1e-08]
[1759750299959,7.58051671,4586.7,4584.8,0.4665]
[1759750299960,0.09810673,4586.6,4584.8,0.4665]
[1759750300160,2.18031178,4586.5,4585.6,0.4665]
[1759750300366,2.54,4586.4,4585.7,0.26482924]
[1759750300561,2.54,4586.4,4585.6,0.4665]
[1759750300766,2.18040686,4586.3,4585.6,0.4665]
[1759750300962,0.09810673,4586.6,4585.6,0.4665]
[1759750301175,0.09810673,4586.6,4585.7,0.02180692]
[1759750301376,0.09810673,4586.6,4585.8,0.4665]
[1759750301377,0.093,4586.5,4585.8,0.4665]
[1759750301575,0.093,4586.5,4586.3,2.18039324]
[1759750301775,0.093,4586.5,4586.4,0.4665]
[1759750301994,0.093,4586.5,4586.1,0.4665]
[1759750302190,0.093,4586.5,4585.4,0.4665]
[1759750302403,0.093,4586.5,4585.6,2.18072706]
[1759750302576,2.1797396,4587.8,4585.7,0.97132271]
[1759750302906,2.1798773,4587.5,4586.0,0.6336]
[1759750303110,2.544,4587.7,4586.2,2.18041398]
[1759750303300,2.544,4587.7,4586.3,0.4665]
[1759750303496,0.09810673,4587.6,4586.3,0.4665]
[1759750303696,2.18011634,4587.0,4586.3,0.4665]
[1759750303910,4.72412598,4586.9,4586.3,0.4665]
[1759750304112,2.544,4586.8,4586.3,0.2647045]
[1759750304286,2.18026424,4586.6,4585.8,0.4665]
[1759750304693,2.1803247,4586.5,4585.8,0.4665]
[1759750305220,2.18031414,4586.5,4585.8,0.4665]
[1759750305380,4.72422212,4586.7,4585.8,0.4665]
[1759750305789,2.544,4586.7,4585.8,0.4665]
[1759750306026,2.544,4586.7,4585.5,0.001]
[1759750306224,2.544,4586.7,4585.6,0.5048346]
[1759750306421,2.18036536,4586.4,4585.6,0.5048346]
[1759750306626,0.09810673,4586.3,4585.6,0.5048346]
[1759750306830,4.72345775,4586.2,4585.7,0.1088]
[1759750306986,2.543,4586.2,4585.7,0.1088]
[1759750307186,2.18062334,4585.9,4585.7,0.1088]
[1759750307580,4.72346407,4586.2,4585.7,0.1088]
[1759750307581,2.543,4586.2,4585.7,0.1088]
[1759750307787,2.543,4586.2,4585.5,0.1098]
[1759750308021,2.18061453,4585.9,4585.5,0.1098]
[1759750308202,4.7234757,4586.2,4585.5,0.1098]
[1759750308203,2.18055116,4586.0,4585.5,0.1098]
[1759750308408,4.72347916,4586.2,4585.5,0.33886906]
[1759750308609,2.543,4586.2,4585.6,0.4665]
[1759750308926,0.1088,4586.4,4585.6,0.4665]
[1759750309135,2.542,4586.3,4585.7,0.1088]
[1759750309286,4.7224189,4586.3,4585.7,0.1088]
[1759750309488,2.18046942,4586.2,4585.7,0.1088]
[1759750309694,2.542,4586.1,4585.7,0.1088]
[1759750309924,2.542,4586.1,4585.7,0.5753]
[1759750310089,2.542,4586.0,4585.7,0.38450764]
[1759750310294,2.542,4586.0,4585.7,0.5753]
[1759750310597,2.542,4586.0,4585.7,2.28948573]
[1759750310802,2.542,4586.0,4585.8,0.4665]
[1759750311422,0.1088,4586.4,4585.9,0.4665]
[1759750311630,2.63910673,4586.3,4585.9,0.4665]
[1759750311920,2.541,4586.2,4585.9,0.74210324]
[1759750312491,2.541,4586.2,4585.9,0.4665]
[1759750312828,2.27852535,4586.3,4585.9,0.4665]
[1759750313124,0.09810673,4586.3,4585.9,0.4665]
[1759750313326,2.54,4586.2,4585.7,0.1088]
[1759750313488,2.18050289,4586.1,4585.7,0.1088]
[1759750313889,2.54,4586.0,4585.7,0.1088]
[1759750314404,2.54,4586.0,4585.7,0.57795519]
[1759750314606,2.539,4585.9,4585.7,0.57795519]
[1759750314915,2.28918319,4586.4,4585.7,0.1088]
[1759750315121,0.09810673,4586.2,4585.7,0.1088]
[1759750315496,0.09810673,4586.2,4585.7,0.5753]
[1759750315697,0.09810673,4586.2,4585.7,2.75598689]
[1759750315902,2.539,4586.1,4585.8,0.4665]
[1759750316122,2.539,4586.1,4585.8,0.51580345]
[1759750316310,0.09810673,4586.2,4586.0,2.18054949]
[1759750316509,0.09810673,4586.2,4586.1,5.06880696]
[1759750316709,0.09810673,4586.2,4586.1,5.04700195]
[1759750316914,0.09730673,4586.2,4586.1,5.04700195]
[1759750319115,0.09730673,4586.2,4586.1,4.58050195]
[1759750319311,0.09730673,4586.2,4586.1,5.26749184]
[1759750319525,0.09730673,4586.2,4586.1,5.73399184]
[1759750319893,0.09730673,4586.2,4586.1,3.55348989]
[1759750320097,0.09730673,4586.2,4586.1,5.73399184]
[1759750320324,0.09730673,4586.2,4586.1,3.08698989]
[1759750320760,0.09730673,4586.2,4586.1,4.58050195]
[1759750320928,0.09730673,4586.2,4586.1,5.04700195]
[1759750321229,0.09730673,4586.2,4586.1,2.9753]
[1759750321822,0.09730673,4586.2,4586.1,5.15580195]
[1759750322804,0.09730673,4586.2,4586.1,2.5088]
[1759750323007,0.09730673,4586.2,4586.1,2.75968]
[1759750323354,0.09730673,4586.2,4586.1,5.36858195]
[1759750325150,0.09730673,4586.2,4586.1,3.18808]
[1759750325304,0.09730673,4586.2,4586.1,5.36858195]
[1759750326141,0.09730673,4586.2,4586.1,2.75968]
[1759750326338,0.09730673,4586.2,4586.1,4.94018195]
[1759750326545,0.09730673,4586.2,4586.1,2.75968]
[1759750326848,0.09730673,4586.2,4586.1,2.9372]
[1759750327054,0.09730673,4586.2,4585.9,1.15779093]
[1759750327235,0.09730673,4586.2,4585.7,2.18069215]
[1759750327541,2.535,4586.1,4585.8,2.18061951]
[1759750327713,2.63230673,4586.2,4585.9,2.18055724]
[1759750328125,2.63230673,4586.2,4585.8,0.4284]
[1759750328320,2.63230673,4586.2,4585.8,2.60900145]
[1759750328533,0.4568,4586.1,4585.6,1.15879093]
[1759750328733,4.81177261,4586.2,4585.6,0.001]
[1759750329043,2.18069215,4585.7,4585.6,0.001]
[1759750329836,2.63749215,4585.7,4585.6,0.001]
[1759750331042,0.4568,4585.7,4585.6,0.001]
[1759750331342,0.09630673,4585.6,4585.5,0.001]
[1759750331521,2.63030673,4585.6,4585.5,0.001]
[1759750331726,5.26784643,4585.6,4585.5,0.001]
[1759750332229,0.09630673,4585.6,4585.5,0.001]
[1759750332428,0.09630673,4585.6,4585.5,2.61018726]
[1759750332632,0.09630673,4585.6,4585.5,2.66099399]
[1759750332836,0.09630673,4585.6,4585.5,3.08939399]
[1759750333655,0.09630673,4585.6,4585.5,0.90860673]
[1759750334156,0.09630673,4585.6,4585.5,2.61018726]
[1759750334367,0.09630673,4585.6,4585.5,6.18978606]
[1759750334570,0.09630673,4585.6,4585.5,5.01018726]
[1759750335923,0.09630673,4585.6,4585.5,2.401]
[1759750336268,0.09630673,4585.6,4585.5,5.01018726]
[1759750336463,0.09630673,4585.6,4585.5,5.72939213]
[1759750337032,0.09630673,4585.6,4585.5,5.83819213]
[1759750338529,0.09630673,4585.6,4585.5,3.22900487]
[1759750338734,0.09630673,4585.6,4585.5,4.39340274]
[1759750338965,0.09630673,4585.6,4585.5,6.57419]
[1759750339156,0.09630673,4585.6,4585.5,3.22900487]
[1759750339339,0.09630673,4585.6,4585.5,2.5098]
[1759750339534,0.09630673,4585.6,4585.5,4.69058726]
[1759750339937,0.09630673,4585.6,4585.5,2.5098]
[1759750340274,0.55310673,4585.6,4585.5,0.001]
[1759750340759,2.73384643,4585.6,4585.5,0.001]
[1759750341144,0.09630673,4585.6,4585.5,0.001]
[1759750341341,0.09550673,4585.6,4585.5,0.001]
[1759750341552,2.73304643,4585.6,4585.5,0.001]
[1759750341745,0.55230673,4585.6,4585.5,0.001]
[1759750341940,0.09550673,4585.6,4585.5,0.001]
[1759750342256,2.73304643,4585.6,4585.5,0.001]
[1759750342440,2.84184643,4585.6,4585.5,0.001]
[1759750343051,0.20430673,4585.6,4585.5,0.001]
[1759750343257,2.62650673,4585.6,4585.5,0.001]
[1759750343556,4.80724643,4585.6,4585.5,0.001]
[1759750343865,5.26404643,4585.6,4585.5,0.001]
[1759750346265,5.1685397,4585.6,4585.5,0.001]
[1759750348481,2.18088238,4585.3,4585.2,0.001]
[1759750348856,2.63768238,4585.3,4585.2,0.001]
[1759750350475,3.27128238,4585.3,4585.2,0.001]
[1759750351269,5.79928238,4585.3,4585.2,0.001]
[1759750351851,2.81457751,4585.1,4585.0,0.001]
[1759750352165,7.85137751,4585.1,4585.0,0.001]
[1759750352476,8.30817751,4585.1,4585.0,0.001]
[1759750353081,8.41697751,4585.1,4585.0,0.001]
[1759750353775,8.41797751,4585.1,4585.0,0.001]
[1759750353945,2.39857751,4585.1,4585.0,0.001]
[1759750354150,4.81777751,4585.1,4585.0,0.001]
[1759750354577,5.25067751,4585.1,4585.0,0.001]
[1759750355151,4.81777751,4585.1,4585.0,0.001]
[1759750355374,2.18107265,4584.9,4584.2,0.001]
[1759750355573,4.81692022,4584.8,4584.2,0.001]
[1759750356768,2.28992022,4584.8,4584.2,0.001]
[1759750357086,0.1088,4584.8,4584.7,0.4736]
[1759750357391,2.6348,4584.8,4584.7,0.001]
[1759750357767,4.81692022,4584.8,4584.7,0.001]
[1759750358859,2.18121537,4584.6,4584.4,0.4726]
[1759750359082,2.18126295,4584.5,4584.4,0.4726]
[1759750359286,2.528,4584.5,4584.4,0.4726]
[1759750359587,2.528,4584.5,4584.4,2.76271053]
[1759750359787,0.09150673,4584.7,4584.5,2.18125838]
[1759750360085,2.321,4584.6,4584.5,0.4726]
[1759750360589,2.527,4584.6,4584.5,2.65386295]
[1759750360799,2.527,4584.6,4584.2,0.001]
[1759750360960,2.18135811,4584.3,4584.2,0.001]
[1759750361291,4.70835811,4584.3,4584.2,0.001]
[1759750362305,2.18135811,4584.3,4584.2,0.001]
[1759750362505,2.18135811,4584.3,4584.2,0.4736]
[1759750362506,2.527,4584.3,4584.2,0.4736]
[1759750362698,2.526,4584.3,4584.2,0.4736]
[1759750362884,0.4329,4585.5,4584.2,0.4736]
[1759750363210,2.18088238,4585.3,4584.2,0.4736]
[1759750363388,2.18135308,4584.4,4584.2,0.38209327]
[1759750363584,2.526,4584.3,4584.2,0.38209327]
[1759750364001,2.526,4584.3,4583.6,2.18166826]
[1759750364204,2.526,4584.3,4583.7,0.45816683]
[1759750364411,2.526,4584.3,4583.3,2.18182729]
[1759750364707,2.526,4584.3,4583.1,1.60630696]
[1759750364909,2.18164738,4583.7,4583.0,2.4]
[1759750365098,2.525,4583.6,4583.0,0.43469359]
[1759750365280,2.525,4583.6,4582.9,1.16439886]
[1759750365482,2.525,4583.6,4583.0,0.4726]
[1759750365704,2.5242,4583.6,4583.0,0.4726]
[1759750366279,2.5242,4583.6,4583.0,2.8726]
[1759750366478,2.18154851,4583.9,4583.0,2.8726]
[1759750366479,0.4329,4584.5,4583.0,2.654558]
[1759750366708,2.18165168,4583.7,4583.0,0.4726]
[1759750367008,2.18173884,4583.5,4583.0,0.4726]
[1759750367387,2.18173884,4583.5,4582.7,1.16439886]
[1759750367588,2.18173884,4583.5,4582.8,0.4726]
[1759750368000,4.70679565,4583.4,4582.8,0.4726]
[1759750368204,2.18188678,4583.2,4582.7,1.16439886]
[1759750368406,2.18188678,4583.2,4582.4,0.11141442]
[1759750368407,2.18188678,4583.2,4582.6,1.16439886]
[1759750368706,2.18206661,4582.9,4582.4,0.84166079]
[1759750368904,2.525,4582.8,4582.3,0.91621929]
[1759750369083,2.524,4582.7,4582.3,0.44361929]
[1759750369289,2.524,4582.6,4582.3,0.4726]
[1759750369712,2.524,4582.6,4582.0,1.16439886]
[1759750369713,4.70618133,4582.6,4582.0,1.16439886]
[1759750370018,4.70616775,4582.6,4581.8,1.16539886]
[1759750370323,2.18232826,4582.3,4581.8,0.001]
[1759750370487,2.524,4582.2,4581.8,0.001]
[1759750370684,4.70636031,4582.2,4581.8,0.001]
[1759750371016,2.524,4582.2,4582.0,0.1088]
[1759750371420,0.1088,4582.6,4582.1,0.4726]
[1759750371715,1.322,4582.5,4582.2,0.4726]
[1759750371924,2.526,4582.4,4582.3,0.4726]
[1759750372420,2.18174039,4583.5,4582.3,0.4726]
[1759750372421,2.18202655,4582.9,4582.3,0.4726]
[1759750372588,0.1088,4583.1,4582.3,0.5824]
[1759750372783,0.1088,4583.1,4582.6,0.1088]
[1759750372784,4.70699589,4583.0,4582.6,0.1088]
[1759750373110,2.18211971,4582.7,4582.6,0.1088]
[1759750373620,0.1088,4583.1,4582.6,0.1088]
[1759750373787,2.525,4583.0,4582.6,0.1088]
[1759750373993,2.18203791,4582.9,4582.6,0.5814]
[1759750374318,2.525,4583.0,4582.6,0.5814]
[1759750374515,2.18202647,4582.9,4582.6,0.5814]
[1759750374820,2.18211971,4582.7,4582.6,0.1088]
[1759750375114,2.18207641,4582.8,4582.6,0.1088]
[1759750375501,2.524,4582.7,4582.6,0.1088]
[1759750376014,2.29072959,4583.1,4582.6,0.1088]
[1759750376015,0.1088,4583.1,4582.6,0.1088]
[1759750376216,0.4329,4584.3,4582.7,0.4726]
[1759750376417,2.18164748,4583.7,4583.0,0.1088]
[1759750376620,2.18165685,4583.7,4583.0,0.5814]
[1759750376787,2.18177432,4583.5,4583.0,0.5814]
[1759750376985,2.18179584,4583.4,4583.0,0.5814]
[1759750377199,2.18182845,4583.4,4583.0,0.1088]
[1759750377398,0.1088,4583.8,4583.0,0.1088]
[1759750377625,4.70564365,4583.7,4583.0,0.1088]
[1759750377815,2.9569,4583.7,4583.0,0.1088]
[1759750378026,0.1088,4583.4,4582.8,0.1088]
[1759750378203,2.18208413,4582.8,4582.3,0.4736]
[1759750378403,2.524,4582.7,4582.6,0.1088]
[1759750380436,4.70611971,4582.7,4582.6,0.1088]
[1759750381436,2.18220832,4582.6,4582.4,0.1088]
[1759750381623,2.524,4582.7,4582.4,0.1088]
[1759750382009,2.18208853,4582.8,4582.7,7.476]
[1759750382235,4.70408853,4582.8,4582.7,7.476]
[1759750382837,0.1088,4583.1,4582.7,7.476]
[1759750383137,2.1819802,4583.0,4582.7,7.476]
[1759750383531,2.521,4582.9,4582.7,7.476]
[1759750383839,4.70302504,4582.9,4582.7,7.476]
[1759750384528,2.18207209,4582.8,4582.7,7.476]
[1759750385127,2.60997209,4582.8,4582.7,7.476]
[1759750385509,5.13097209,4582.8,4582.7,7.476]
[1759750385911,5.23977209,4582.8,4582.7,7.476]
[1759750390327,5.23897209,4582.8,4582.7,7.476]
[1759750390741,2.29007209,4582.8,4582.7,7.476]
[1759750390942,3.3730776,4582.8,4582.7,7.476]
[1759750391318,5.8920776,4582.8,4582.7,7.476]
[1759750393730,0.6336,4582.7,4582.3,0.001]
[1759750393934,5.8920776,4582.8,4582.3,0.001]
[1759750393935,2.29106256,4582.4,4582.3,0.001]
[1759750394233,4.80806256,4582.4,4582.3,0.001]
[1759750394442,5.23596256,4582.4,4582.3,0.001]
[1759750394645,5.32331606,4582.4,4582.3,0.001]
[1759750395453,2.37841606,4582.4,4582.3,0.001]
[1759750395763,0.1088,4582.4,4582.3,0.4582]
[1759750396057,2.516,4582.4,4582.3,0.4582]
[1759750396262,4.69826256,4582.4,4582.3,0.001]
[1759750396563,5.12616256,4582.4,4582.3,0.001]
[1759750397360,0.20381163,4582.4,4582.3,0.001]
[1759750397560,0.08733462,4582.8,4582.3,0.4582]
[1759750397758,2.516,4582.7,4582.3,0.4582]
[1759750397934,2.18226256,4582.4,4582.3,0.001]
[1759750398665,2.18226256,4582.4,4582.3,0.4582]
[1759750398839,2.18211971,4582.7,4582.3,0.4582]
[1759750399040,2.18221045,4582.6,4582.4,0.4572]
[1759750399367,2.18221494,4582.5,4582.4,0.4572]
[1759750400256,2.18226256,4582.4,4582.3,0.001]
[1759750400874,4.69726256,4582.4,4582.3,0.001]
[1759750401163,5.12516256,4582.4,4582.3,0.001]
[1759750401351,4.69726256,4582.4,4582.3,0.001]
[1759750401950,2.18226256,4582.4,4582.3,0.001]
[1759750402172,4.69626256,4582.4,4582.3,0.4582]
[1759750404103,0.08733462,4582.8,4582.3,0.001]
[1759750404104,2.26945333,4582.8,4582.3,0.001]
[1759750404255,2.514,4582.8,4582.3,0.4582]
[1759750404454,2.514,4582.8,4582.4,0.4572]
[1759750404708,2.514,4582.8,4582.3,0.001]
[1759750405151,2.514,4582.8,4582.4,0.4572]
[1759750405152,2.18212104,4582.7,4582.4,0.4572]
[1759750405481,2.18212104,4582.7,4582.5,0.4572]
[1759750405685,0.002,4583.6,4582.6,0.4572]
[1759750405853,2.513,4583.5,4582.6,0.4572]
[1759750406052,2.18202589,4582.9,4582.6,0.4572]
[1759750406279,4.69507209,4582.8,4582.7,0.4572]
[1759750406451,0.1088,4583.2,4582.7,0.4572]
[1759750406652,0.1088,4583.4,4582.8,0.1088]
[1759750406884,2.176,4583.3,4582.9,0.4572]
[1759750407198,2.513,4583.2,4583.0,0.4572]
[1759750407498,2.18183618,4583.3,4582.8,0.1088]
[1759750407796,2.513,4583.2,4583.1,0.4572]
[1759750407995,2.513,4583.2,4582.8,0.1088]
[1759750408199,2.515,4583.2,4583.1,0.4572]
[1759750408496,2.515,4583.2,4582.3,21.16539886]
[1759750408697,2.18192926,4583.1,4582.5,0.1088]
[1759750408896,2.18201827,4583.0,4582.5,0.1088]
[1759750409099,2.18208415,4582.8,4582.5,0.1088]
[1759750409600,2.18208415,4582.8,4582.6,0.4572]
[1759750409898,2.512,4582.9,4582.5,0.1088]
[1759750410068,0.1088,4582.9,4582.3,20.001]
[1759750410273,2.513,4582.8,4582.3,20.4582]
[1759750410491,2.513,4582.8,4582.4,0.4572]
[1759750410800,2.513,4582.8,4582.3,20.001]
[1759750410979,2.513,4582.8,4582.3,20.4582]
[1759750411178,2.513,4582.8,4582.3,20.001]
[1759750411179,2.4,4582.7,4582.3,20.001]
[1759750411379,2.18226256,4582.4,4582.3,20.001]
[1759750411579,2.61016256,4582.4,4582.3,20.001]
[1759750411902,5.12216256,4582.4,4582.3,20.001]
[1759750412399,2.61016256,4582.4,4582.3,20.001]
[1759750412569,5.12216256,4582.4,4582.3,20.001]
[1759750413109,5.32607936,4582.4,4582.3,20.001]
[1759750413270,5.32507936,4582.4,4582.3,20.001]
[1759750413470,2.38617936,4582.4,4582.3,20.001]
[1759750413680,4.69326256,4582.4,4582.3,20.001]
[1759750414731,2.18245307,4582.0,4581.9,0.001]
[1759750414887,4.69345307,4582.0,4581.9,0.001]
[1759750415091,2.18245307,4582.0,4581.9,0.001]
[1759750415494,4.69245307,4582.0,4581.9,0.001]
[1759750417325,2.18245307,4582.0,4581.9,0.001]
[1759750417487,4.69145307,4582.0,4581.9,0.001]
[1759750418787,5.12275307,4582.0,4581.9,0.001]
[1759750419195,5.21010886,4582.0,4581.9,0.001]
[1759750419497,4.77880886,4582.0,4581.9,0.001]
[1759750419823,5.21010886,4582.0,4581.9,0.001]
[1759750420400,4.77880886,4582.0,4581.9,0.001]
[1759750420923,5.21010886,4582.0,4581.9,0.001]
[1759750421311,5.5227605,4582.0,4581.9,0.001]
[1759750423341,8.4475605,4582.0,4581.9,0.001]
[1759750424706,8.4485605,4582.0,4581.9,0.001]
[1759750427299,5.9385605,4582.0,4581.9,0.001]
[1759750427502,8.4475605,4582.0,4581.9,0.001]
[1759750429336,5.9385605,4582.0,4581.9,0.001]
[1759750429504,8.4475605,4582.0,4581.9,0.001]
[1759750429911,2.81629125,4581.5,4581.4,1e-08]
[1759750430144,7.92914289,4581.5,4581.4,1e-08]
[1759750430355,8.36044289,4581.5,4581.4,1e-08]
[1759750430720,8.4478191,4581.5,4581.4,1e-08]
[1759750433340,8.5566191,4581.5,4581.4,1e-08]
[1759750433908,10.8486191,4581.5,4581.4,1e-08]
[1759750434528,22.34492207,4581.5,4581.4,1e-08]
[1759750435421,22.34192207,4581.5,4581.4,1e-08]
[1759750436408,22.34192207,4581.5,4579.5,1e-08]
[1759750436409,2.81719682,4579.6,4579.5,1e-08]
[1759750436611,5.42046548,4579.6,4579.5,1e-08]
[1759750436811,5.42046548,4579.6,4579.5,0.46680001]
[1759750436812,2.38686548,4579.6,4579.5,0.46680001]
[1759750437051,5.15739682,4579.6,4579.5,0.46680001]
[1759750437638,2.65139682,4579.6,4579.5,0.46680001]
[1759750438217,5.15739682,4579.6,4579.5,0.46680001]
[1759750438760,2.65139682,4579.6,4579.5,0.46680001]
[1759750439057,5.15739682,4579.6,4579.5,0.46680001]
[1759750439260,5.15659682,4579.6,4579.5,0.46680001]
[1759750439816,2.65059682,4579.6,4579.5,0.46680001]
[1759750440017,5.15559682,4579.6,4579.5,0.46680001]
[1759750440998,4.68859682,4579.6,4579.5,0.46680001]
[1759750443029,4.68859682,4579.6,4579.5,1e-08]
[1759750443427,4.89190648,4579.6,4579.5,1e-08]
[1759750443628,5.52550648,4579.6,4579.5,1e-08]
[1759750443866,7.92550648,4579.6,4579.5,1e-08]
[1759750444071,8.35350648,4579.6,4579.5,1e-08]
[1759750444421,8.35350648,4579.6,4578.3,1e-08]
[1759750444422,0.6336,4579.0,4578.3,1e-08]
[1759750444628,0.6336,4578.8,4578.3,1e-08]
[1759750444838,2.18416914,4578.4,4578.3,1e-08]
[1759750445054,4.68816914,4578.4,4578.3,1e-08]
[1759750446468,4.79776914,4578.4,4578.3,1e-08]
[1759750448352,8.46254504,4578.4,4578.3,1e-08]
[1759750448842,8.90464504,4578.4,4578.3,1e-08]
[1759750449497,8.90456834,4578.4,4578.3,1e-08]
[1759750450346,11.17456834,4578.4,4578.3,1e-08]
[1759750451179,2.18507593,4576.5,4576.4,3.98946551]
[1759750451394,4.69107593,4576.5,4576.4,3.98946551]
[1759750451544,2.18507593,4576.5,4576.4,3.98946551]
[1759750451748,4.69107593,4576.5,4576.4,3.98946551]
[1759750452426,5.52749601,4576.5,4576.4,3.98946551]
[1759750452590,2.81881917,4576.2,4576.1,0.001]
[1759750452926,5.52865402,4576.2,4576.1,0.001]
[1759750453088,5.32581917,4576.2,4576.1,0.001]
[1759750453596,2.18521917,4576.2,4576.1,0.001]
[1759750454028,4.69121917,4576.2,4576.1,0.001]
[1759750454723,5.32481917,4576.2,4576.1,0.001]
[1759750456074,8.35530317,4576.2,4576.1,0.001]
[1759750456325,5.42119092,4576.2,4576.1,0.001]
[1759750456487,7.92719092,4576.2,4576.1,0.001]
[1759750457193,8.35619092,4576.2,4576.1,0.001]
[1759750458424,8.3561016,4576.2,4576.1,0.001]
[1759750458835,0.6336,4576.0,4574.5,0.4421]
[1759750458996,2.18598347,4574.6,4574.5,0.4421]
[1759750459325,4.69298347,4574.6,4574.5,0.4421]
[1759750460229,4.69298347,4574.6,4572.1,0.6336]
[1759750460230,2.507,4574.6,4572.1,0.6336]